fUST/lending_fUST_20240510
["ID","MTS","AMOUNT","RATE_DAILY","PERIOD"]
[326775326,1715353840459,-500.0,0.00038504,4]
[326775327,1715353840470,-5403.23965696,0.000387,10]
[326775328,1715353840480,-309.16525382,0.00038731,4]
[326775329,1715353840490,-1042.0,0.00038731,4]
[326775330,1715353840499,-159.42165086,0.00038731,4]
[326775331,1715353840508,-242.96075463,0.00038731,4]
[326775332,1715353840518,-155.2379607,0.00038732,4]
[326775333,1715353840528,-164.50950765,0.0003874,4]
[326775334,1715353840537,-467.00386112,0.0003874,4]
[326775335,1715353840547,-500.0,0.00038789,10]
[326775336,1715353840556,-500.0,0.00038789,10]
[326775337,1715353840565,-500.0,0.00038789,10]
[326775339,1715353840576,-500.0,0.00038789,10]
[326775341,1715353840585,-500.0,0.00038789,10]
[326775343,1715353840595,-500.0,0.00038789,10]
[326775345,1715353840604,-275.30999999,0.00038789,10]
[326775347,1715353840613,-151.0,0.0003879,2]
[326775349,1715353840622,-151.0,0.0003879,2]
[326775351,1715353840632,-151.0,0.0003879,2]
[326775353,1715353840641,-229.386773,0.0003879,2]
[326775355,1715353840651,-786.579016,0.0003879,2]
[326775357,1715353840660,-786.579016,0.0003879,2]
[326775359,1715353840669,-786.579016,0.0003879,2]
[326775361,1715353840679,-786.579016,0.0003879,2]
[326775363,1715353840688,-786.579016,0.0003879,2]
[326775365,1715353840698,-786.579016,0.0003879,2]
[326775367,1715353840707,-786.579016,0.0003879,2]
[326775369,1715353840718,-786.579016,0.0003879,2]
[326775371,1715353840728,-196.058026,0.0003879,2]
[326775373,1715353840737,-151.0,0.0003879,2]
[326775375,1715353840746,-151.0,0.0003879,2]
[326775377,1715353840756,-151.0,0.0003879,2]
[326775379,1715353840765,-151.0,0.0003879,2]
[326775381,1715353840775,-151.0,0.0003879,2]
[326775383,1715353840784,-151.0,0.0003879,2]
[326775385,1715353840793,-151.0,0.0003879,2]
[326775387,1715353840803,-151.0,0.0003879,2]
[326775389,1715353840813,-309.902945,0.0003879,2]
[326775391,1715353840824,-309.902945,0.0003879,2]
[326775394,1715353840834,-309.902945,0.0003879,2]
[326775396,1715353840843,-309.902945,0.0003879,2]
[326775398,1715353840852,-309.902945,0.0003879,2]
[326775400,1715353840862,-309.902945,0.0003879,2]
[326775402,1715353840871,-309.902945,0.0003879,2]
[326775404,1715353840880,-309.902945,0.0003879,2]
[326775406,1715353840889,-307.935114,0.0003879,2]
[326775408,1715353840899,-307.935114,0.0003879,2]
[326775409,1715353840908,-307.935114,0.0003879,2]
[326775410,1715353840917,-307.935114,0.0003879,2]
[326775411,1715353840926,-307.935114,0.0003879,2]
[326775412,1715353840935,-307.935114,0.0003879,2]
[326775413,1715353840945,-307.935114,0.0003879,2]
[326775414,1715353840954,-307.935114,0.0003879,2]
[326775415,1715353840963,-471.046822,0.0003879,2]
[326775416,1715353840973,-471.046822,0.0003879,2]
[326775417,1715353840982,-471.046822,0.0003879,2]
[326775418,1715353840991,-471.046822,0.0003879,2]
[326775419,1715353841001,-471.046822,0.0003879,2]
[326775420,1715353841010,-471.046822,0.0003879,2]
[326775421,1715353841020,-471.046822,0.0003879,2]
[326775422,1715353841029,-471.046822,0.0003879,2]
[326775423,1715353841039,-471.046822,0.0003879,2]
[326775424,1715353841048,-471.046822,0.0003879,2]
[326775425,1715353841057,-151.0,0.0003879,2]
[326775426,1715353841066,-151.0,0.0003879,2]
[326775427,1715353841076,-151.0,0.0003879,2]
[326775428,1715353841085,-151.0,0.0003879,2]
[326775429,1715353841094,-151.0,0.0003879,2]
[326775430,1715353841103,-197.707357,0.0003879,2]
[326775431,1715353841113,-151.0,0.0003879,2]
[326775432,1715353841123,-151.0,0.0003879,2]
[326775433,1715353841132,-151.0,0.0003879,2]
[326775434,1715353841140,-151.0,0.0003879,2]
[326775435,1715353841151,-151.0,0.0003879,2]
[326775436,1715353841159,-151.0,0.0003879,2]
[326775437,1715353841168,-151.0,0.0003879,2]
[326775438,1715353841263,-151.0,0.0003879,2]
[326775439,1715353841274,-151.0,0.0003879,2]
[326775440,1715353841283,-151.0,0.0003879,2]
[326775441,1715353841293,-151.0,0.0003879,2]
[326775442,1715353841306,-151.0,0.0003879,2]
[326775443,1715353841315,-151.0,0.0003879,2]
[326775444,1715353841325,-151.0,0.0003879,2]
[326775445,1715353841334,-151.0,0.0003879,2]
[326775446,1715353841346,-151.0,0.0003879,2]
[326775447,1715353841355,-151.0,0.0003879,2]
[326775448,1715353841364,-151.0,0.0003879,2]
[326775449,1715353841373,-151.0,0.0003879,2]
[326775450,1715353841382,-151.0,0.0003879,2]
[326775451,1715353841393,-151.0,0.0003879,2]
[326775452,1715353841402,-151.0,0.0003879,2]
[326775453,1715353841411,-151.0,0.0003879,2]
[326775454,1715353841420,-151.0,0.0003879,2]
[326775455,1715353841430,-151.0,0.0003879,2]
[326775456,1715353841439,-151.0,0.0003879,2]
[326775457,1715353841448,-151.0,0.0003879,2]
[326775458,1715353841458,-151.0,0.0003879,2]
[326775459,1715353841467,-151.0,0.0003879,2]
[326775460,1715353841476,-171.847643,0.0003879,2]
[326775461,1715353841485,-227.208661,0.0003879,2]
[326775462,1715353841494,-227.208661,0.0003879,2]
[326775463,1715353841503,-227.208661,0.0003879,2]
[326775464,1715353841512,-227.208661,0.0003879,2]
[326775465,1715353841522,-227.208661,0.0003879,2]
[326775466,1715353841531,-227.208661,0.0003879,2]
[326775467,1715353841540,-227.208661,0.0003879,2]
[326775468,1715353841550,-227.208661,0.0003879,2]
[326775469,1715353841559,-227.208661,0.0003879,2]
[326775470,1715353841569,-227.208661,0.0003879,2]
[326775471,1715353841578,-227.208661,0.0003879,2]
[326775472,1715353841588,-227.208661,0.0003879,2]
[326775473,1715353841597,-151.0,0.0003879,2]
[326775474,1715353841607,-151.0,0.0003879,2]
[326775475,1715353841616,-151.0,0.0003879,2]
[326775476,1715353841625,-151.0,0.0003879,2]
[326775477,1715353841635,-258.831828,0.0003879,2]
[326775478,1715353841644,-151.0,0.0003879,2]
[326775479,1715353841654,-151.0,0.0003879,2]
[326775480,1715353841663,-151.0,0.0003879,2]
[326775481,1715353841673,-151.0,0.0003879,2]
[326775482,1715353841682,-151.0,0.0003879,2]
[326775483,1715353841692,-151.0,0.0003879,2]
[326775484,1715353841701,-151.0,0.0003879,2]
[326775485,1715353841710,-151.0,0.0003879,2]
[326775486,1715353841720,-151.894999,0.0003879,2]
[326775487,1715353841729,-151.0,0.0003879,2]
[326775488,1715353841739,-151.0,0.0003879,2]
[326775489,1715353841748,-220.841311,0.0003879,2]
[326775490,1715353841757,-151.0,0.0003879,2]
[326775491,1715353841766,-151.0,0.0003879,2]
[326775492,1715353841775,-151.0,0.0003879,2]
[326775493,1715353841785,-151.0,0.0003879,2]
[326775494,1715353841794,-151.0,0.0003879,2]
[326775495,1715353841803,-151.0,0.0003879,2]
[326775496,1715353841812,-151.0,0.0003879,2]
[326775497,1715353841822,-151.0,0.0003879,2]
[326775498,1715353841831,-151.0,0.0003879,2]
[326775499,1715353841840,-151.0,0.0003879,2]
[326775500,1715353841849,-615.259685,0.0003879,2]
[326775501,1715353841859,-151.0,0.0003879,2]
[326775502,1715353841868,-615.259685,0.0003879,2]
[326775503,1715353841877,-151.0,0.0003879,2]
[326775504,1715353841886,-615.259685,0.0003879,2]
[326775505,1715353841895,-615.259685,0.0003879,2]
[326775506,1715353841904,-615.259685,0.0003879,2]
[326775507,1715353841913,-615.259685,0.0003879,2]
[326775508,1715353841922,-615.259685,0.0003879,2]
[326775509,1715353841931,-151.0,0.0003879,2]
[326775510,1715353841940,-151.0,0.0003879,2]
[326775512,1715353841949,-615.259685,0.0003879,2]
[326775514,1715353841960,-615.259685,0.0003879,2]
[326775515,1715353841971,-615.259685,0.0003879,2]
[326775517,1715353841981,-615.259685,0.0003879,2]
[326775519,1715353841992,-151.0,0.0003879,2]
[326775521,1715353842002,-615.259685,0.0003879,2]
[326775523,1715353842013,-151.0,0.0003879,2]
[326775525,1715353842023,-151.0,0.0003879,2]
[326775527,1715353842033,-245.507309,0.0003879,2]
[326775529,1715353842042,-4566.537007,0.0003879,2]
[326775531,1715353842052,-4566.537007,0.0003879,2]
[326775533,1715353842062,-4566.537007,0.0003879,2]
[326775535,1715353842074,-4566.537007,0.0003879,2]
[326775537,1715353842083,-4566.537007,0.0003879,2]
[326775539,1715353842094,-4566.537007,0.0003879,2]
[326775541,1715353842103,-4566.537007,0.0003879,2]
[326775543,1715353842113,-4566.537007,0.0003879,2]
[326775545,1715353842123,-4566.537007,0.0003879,2]
[326775547,1715353842132,-4566.537007,0.0003879,2]
[326775549,1715353842142,-4566.537007,0.0003879,2]
[326775551,1715353842151,-4566.537007,0.0003879,2]
[326775553,1715353842160,-245.589962,0.0003879,2]
[326775555,1715353842170,-245.589962,0.0003879,2]
[326775557,1715353842179,-245.589962,0.0003879,2]
[326775559,1715353842188,-245.589962,0.0003879,2]
[326775561,1715353842198,-245.589962,0.0003879,2]
[326775563,1715353842208,-245.589962,0.0003879,2]
[326775565,1715353842218,-245.589962,0.0003879,2]
[326775567,1715353842227,-245.589962,0.0003879,2]
[326775569,1715353842237,-245.589962,0.0003879,2]
[326775571,1715353842247,-245.589962,0.0003879,2]
[326775573,1715353842256,-245.589962,0.0003879,2]
[326775575,1715353842266,-245.589962,0.0003879,2]
[326775577,1715353842276,-151.188848,0.0003879,2]
[326775579,1715353842286,-151.0,0.0003879,2]
[326775581,1715353842300,-151.0,0.0003879,2]
[326775583,1715353842309,-151.0,0.0003879,2]
[326775585,1715353842320,-151.0,0.0003879,2]
[326775587,1715353842331,-151.0,0.0003879,2]
[326775589,1715353842341,-151.377895,0.00038791,2]
[326775591,1715353842351,-151.0,0.00038791,2]
[326775593,1715353842360,-151.0,0.00038791,2]
[326775595,1715353842370,-218.726756,0.00038791,2]
[326775597,1715353842380,-438998.57424561,0.00038791,30]
[326775599,1715353842399,-2497.62174325,0.00038791,30]
[326775601,1715353842412,-24389.7,0.00038791,30]
[326775613,1715353842598,-389.07306561,0.00038791,30]
[326775614,1715353842610,-18285.6,0.00038791,30]
[326775692,1715353844676,-16690.80695268,0.00038791,30]
[326775694,1715353844701,-445.07373804,0.00038791,30]
[326775735,1715353845494,-4065.3930542,0.00038791,30]
[326775737,1715353845512,-5491.2,0.00038791,30]
[326775753,1715353846471,-367.50388086,0.0003879,4]
[326775755,1715353846486,-18952.97885953,0.00038791,30]
[326775757,1715353846506,-240718.89599431,0.00038791,30]
[326775760,1715353846525,-155.37223522,0.00038791,120]
[326775762,1715353846541,-2723.17648294,0.00038791,2]
[326775764,1715353846556,-86903.067317,0.00038791,2]
[326775810,1715354083003,4593.47,0.0001501,2]
[326775826,1715354539679,154.95314682,0.0001501,2]
[326775827,1715354636623,834.20724205,9.999e-05,2]
[326775828,1715354665710,1624.38458646,9.999e-05,2]
[326775836,1715355035838,-1042.0,0.00015885,2]
[326775838,1715355035849,-834.20724205,0.00015886,2]
[326775840,1715355035859,-161.9192,0.0001589,2]
[326775842,1715355035869,-273.52788847,0.00019781,2]
[326775844,1715355035879,-646.461661,0.00019782,2]
[326775845,1715355035888,-227.158,0.0001989,2]
[326775847,1715355035899,-401.11572365,0.0002,2]
[326775849,1715355035910,-3127.26384509,0.0002,2]
[326775851,1715355035920,-175.87250384,0.00020812,2]
[326775853,1715355035930,-428.22937857,0.00020812,2]
[326775855,1715355035940,-2106.79631056,0.0002091,2]
[326775857,1715355035951,-580.77377881,0.0002091,2]
[326775858,1715355035962,-940.74470998,0.0002091,2]
[326775860,1715355035972,-1578.7542886,0.0002091,2]
[326775862,1715355035982,-1623.44024738,0.0002091,2]
[326775864,1715355035993,-155.2379607,0.0002091,2]
[326775865,1715355036003,-718.7949124,0.0002091,2]
[326775866,1715355036013,-1493.78708353,0.00020911,2]
[326775867,1715355036023,-631.88492259,0.00020912,2]
[326775868,1715355036033,-234.58785547,0.00020912,2]
[326775869,1715355036047,-744.35932258,0.00020912,2]
[326775870,1715355036057,-2896.42267447,0.00020912,2]
[326775871,1715355036068,-993.01764,0.00020912,2]
[326775872,1715355036078,-154.73694719,0.00020912,2]
[326775873,1715355036089,-818.14050438,0.00020912,2]
[326775874,1715355036099,-17043.68422043,0.00020912,2]
[326775875,1715355036110,-26905.94284497,0.00020912,2]
[326775876,1715355036120,-1092.69843081,0.00020913,2]
[326775877,1715355036131,-165.4662005,0.00021918,2]
[326775878,1715355036141,-166.666666,0.00021918,2]
[326775879,1715355036150,-159.42165086,0.00022,2]
[326775880,1715355036160,-150.0,0.00022318,2]
[326775881,1715355036169,-150.0,0.00022318,2]
[326775882,1715355036179,-309.16525382,0.00023,2]
[326775883,1715355036188,-150.0,0.00023834,3]
[326775884,1715355036198,-166.666666,0.00024482,2]
[326775885,1715355036207,-242.96075463,0.00025,2]
[326775886,1715355036217,-164.50950765,0.00025,2]
[326775887,1715355036227,-161.9192,0.00025205,2]
[326775888,1715355036236,-150.0,0.00025351,3]
[326775889,1715355036246,-150.0,0.00026867,3]
[326775890,1715355036255,-150.0,0.00028383,5]
[326775891,1715355036265,-428.22937857,0.00029253,2]
[326775892,1715355036275,-646.461661,0.00029674,2]
[326775893,1715355036284,-1016.0,0.0003,15]
[326775894,1715355036297,-467.00386112,0.00034,4]
[326775895,1715355036306,-161.9192,0.00034521,2]
[326775896,1715355036315,-935.44414389,0.000356,30]
[326775897,1715355036336,-428.22937857,0.00037694,2]
[326775898,1715355036347,-1016.08,0.0003799,3]
[326775899,1715355036357,-846.73,0.0003799,3]
[326775900,1715355036367,-705.61,0.0003799,3]
[326775901,1715355036377,-208.3421,0.00037999,15]
[326775902,1715355036387,-500.0,0.00037999,15]
[326775903,1715355036397,-500.0,0.00037999,15]
[326775904,1715355036408,-208.42032359,0.00037999,15]
[326775905,1715355036423,-75.69375977,0.00037999,15]
[326775906,1715355036434,-500.0,0.00037999,15]
[326775907,1715355036444,-4505.55103882,0.00038,15]
[326775908,1715355036455,-10097.50520141,0.00038,120]
[326775909,1715355036468,-2788.69735376,0.00038,120]
[326775952,1715355039293,-894.93743892,0.00038,120]
[326775953,1715355039308,-18054.33648344,0.00038,30]
[326775955,1715355039319,-57892.11424102,0.00038,30]
[326775956,1715355039333,-142107.88575898,0.00038,30]
[326775957,1715355039344,-175.87250384,0.00038256,2]
[326775958,1715355039354,-500.0,0.00038356,10]
[326775959,1715355039364,-500.0,0.00038356,10]
[326775960,1715355039374,-500.0,0.00038356,10]
[326775961,1715355039385,-160.0,0.000387,19]
[326775962,1715355039396,-210.74,0.000387,2]
[326775963,1715355039407,-500.0,0.000387,2]
[326775964,1715355039417,-500.0,0.000387,2]
[326775965,1715355039428,-500.0,0.00038775,4]
[326775966,1715355039438,-500.0,0.00038786,10]
[326775967,1715355039448,-500.0,0.00038786,10]
[326775968,1715355039458,-714.97924015,0.0003879,2]
[326775969,1715355039468,-364.18525495,0.00038791,2]
[326775970,1715355039479,-5553.36489146,0.00038791,120]
[326775971,1715355039490,-1174.39118562,0.00038795,2]
[326775972,1715355039500,-300.0,0.00038795,2]
[326775973,1715355039510,-782.64876785,0.00038795,2]
[326775974,1715355039520,-287.04993241,0.00038795,2]
[326775975,1715355039530,-4093.95949096,0.00038795,2]
[326775976,1715355039540,-316.03192088,0.00038795,2]
[326775977,1715355039552,-9957.88273507,0.00038795,2]
[326775978,1715355039562,-152.25589041,0.00038795,2]
[326775979,1715355039571,-431.44946284,0.00038795,2]
[326775980,1715355039581,-3016.706151,0.00038795,2]
[326775981,1715355039591,-1005.01807778,0.00038795,2]
[326775982,1715355039601,-507.23061855,0.00038795,2]
[326775983,1715355039611,-4348.80890128,0.00038795,2]
[326775984,1715355039622,-557.0,0.00038795,30]
[326775985,1715355039632,-557.0,0.00038795,30]
[326775986,1715355039642,-557.0,0.00038795,30]
[326775987,1715355039653,-557.0,0.00038795,30]
[326775988,1715355039663,-557.0,0.00038795,30]
[326775989,1715355039672,-557.0,0.00038795,30]
[326775990,1715355039684,-557.0,0.00038795,30]
[326775991,1715355039696,-557.0,0.00038795,30]
[326775992,1715355039706,-557.0,0.00038795,30]
[326775993,1715355039717,-557.0,0.00038795,30]
[326775994,1715355039728,-557.0,0.00038795,30]
[326775995,1715355039739,-557.0,0.00038795,30]
[326775996,1715355039749,-557.0,0.00038795,30]
[326775997,1715355039760,-557.0,0.00038795,30]
[326775998,1715355039771,-557.0,0.00038795,30]
[326775999,1715355039781,-557.0,0.00038795,30]
[326776000,1715355039791,-557.0,0.00038795,30]
[326776001,1715355039804,-557.0,0.00038795,30]
[326776002,1715355039814,-557.0,0.00038795,30]
[326776003,1715355039824,-557.0,0.00038795,30]
[326776004,1715355039834,-557.0,0.00038795,30]
[326776005,1715355039844,-557.0,0.00038795,30]
[326776006,1715355039853,-557.0,0.00038795,30]
[326776007,1715355039864,-557.0,0.00038795,30]
[326776008,1715355039874,-557.0,0.00038795,30]
[326776009,1715355039884,-557.0,0.00038795,30]
[326776010,1715355039895,-557.0,0.00038795,30]
[326776011,1715355039905,-557.0,0.00038795,30]
[326776012,1715355039916,-557.0,0.00038795,30]
[326776013,1715355039925,-557.0,0.00038795,30]
[326776014,1715355039935,-557.0,0.00038795,30]
[326776015,1715355039945,-557.0,0.00038795,30]
[326776016,1715355039955,-557.0,0.00038795,30]
[326776017,1715355039965,-478.28507218,0.00038795,30]
[326776019,1715355039975,-557.0,0.00038795,30]
[326776020,1715355039985,-373.6078862,0.00038795,2]
[326776021,1715355039995,-2712.94991361,0.00038795,2]
[326776022,1715355040005,-714.7195409,0.00038795,30]
[326776023,1715355040015,-25146.71071082,0.00038795,30]
[326776024,1715355040024,-158.72162466,0.00038795,30]
[326776025,1715355040034,-154.7215013,0.00038809,2]
[326776026,1715355040044,-236.43863487,0.00038843,4]
[326776027,1715355040054,-153.0,0.00038904,2]
[326776028,1715355040063,-153.0,0.00038904,2]
[326776029,1715355040073,-153.0,0.00038904,2]
[326776030,1715355040083,-153.0,0.00038904,2]
[326776031,1715355040093,-153.0,0.00038904,2]
[326776032,1715355040102,-306.0,0.00038904,2]
[326776033,1715355040112,-309.28308511,0.00038993,4]
[326776034,1715355040121,-669.40720744,0.00038994,4]
[326776035,1715355040130,-267.5922185,0.00038995,4]
[326776036,1715355040140,-167.2605981,0.00038995,4]
[326776037,1715355040149,-155.21834635,0.00038995,4]
[326776038,1715355040159,-154.97449672,0.00038996,4]
[326776039,1715355040169,-203.78060237,0.00038997,4]
[326776040,1715355040179,-376.57535932,0.00038997,30]
[326776041,1715355040190,-194.47192697,0.00038997,4]
[326776042,1715355040199,-212.00535005,0.00038997,2]
[326776043,1715355040209,-154.94505041,0.00038997,4]
[326776044,1715355040219,-173.53646656,0.00038997,4]
[326776045,1715355040229,-189.37645912,0.00038998,4]
[326776046,1715355040239,-838.59959304,0.00038998,4]
[326776047,1715355040249,-500.0,0.00038998,10]
[326776048,1715355040259,-2782.39664356,0.00038999,4]
[326776049,1715355040269,-557.0,0.00038999,5]
[326776050,1715355040280,-159.22255059,0.00039072,4]
[326776051,1715355040289,-212.99887671,0.00039072,4]
[326776052,1715355040300,-151.43220059,0.00039503,2]
[326776053,1715355040309,-5000.0,0.0004,21]
[326776054,1715355040319,-500.0,0.0004,14]
[326776055,1715355040328,-4280.05780043,0.0004,4]
[326776056,1715355040441,-328.74810543,0.0004,30]
[326776057,1715355040451,-360.38557261,0.0004,2]
[326776058,1715355040460,-201.02548363,0.0004,4]
[326776059,1715355040469,-192.95884845,0.0004,15]
[326776060,1715355040479,-306.0,0.00040658,2]
[326776061,1715355040489,-306.0,0.00040658,2]
[326776062,1715355040498,-235.9526589,0.00040914,120]
[326776063,1715355040508,-557.0,0.00040949,5]
[326776064,1715355040518,-178.3315887,0.00041096,2]
[326776065,1715355040527,-500.0,0.00041096,31]
[326776066,1715355040537,-500.0,0.00041096,31]
[326776067,1715355040548,-500.0,0.00041096,31]
[326776068,1715355040558,-500.0,0.00041096,31]
[326776069,1715355040568,-215.20482355,0.00041096,31]
[326776070,1715355040578,-444.97994747,0.00042,120]
[326776071,1715355040588,-153.0,0.00042301,2]
[326776072,1715355040597,-153.0,0.00042301,2]
[326776074,1715355040606,-153.0,0.00042301,2]
[326776076,1715355040616,-153.0,0.00042301,2]
[326776078,1715355040625,-153.0,0.00042301,2]
[326776079,1715355040635,-211.32341903,0.00042465,7]
[326776080,1715355040645,-1698.25938138,0.000425,30]
[326776081,1715355040655,-500.70071382,0.00043,120]
[326776082,1715355040664,-153.0,0.00043123,2]
[326776083,1715355040674,-306.7911321,0.00043671,2]
[326776084,1715355040684,-161.9192,0.00043836,2]
[326776085,1715355040696,-162.73015317,0.00044,120]
[326776086,1715355040706,-156.41622596,0.00044,15]
[326776087,1715355040715,-150.72868836,0.00044048,2]
[326776088,1715355040725,-301.45737672,0.00044788,4]
[326776089,1715355040735,-220.09829943,0.00044999,120]
[326776090,1715355040744,-500.0,0.00045,30]
[326776091,1715355040754,-521.5,0.00045,2]
[326776092,1715355040765,-151.0,0.00045,120]
[326776093,1715355040775,-500.27959955,0.0004566,120]
[326776094,1715355040785,-8399.0,0.00045678,120]
[326776095,1715355040796,-357.0,0.00045678,120]
[326776096,1715355040806,-55555.0,0.00045747,5]
[326776097,1715355040815,-153.85487965,0.00045794,30]
[326776098,1715355040824,-154.79836252,0.000459,4]
[326776099,1715355040833,-2000.0,0.000463,2]
[326776100,1715355040842,-500.0,0.00046399,10]
[326776101,1715355040851,-500.0,0.00046399,10]
[326776102,1715355040861,-500.0,0.00046399,10]
[326776103,1715355040870,-500.0,0.00046399,10]
[326776104,1715355040879,-500.0,0.00046399,10]
[326776105,1715355040888,-500.0,0.00046399,10]
[326776106,1715355040898,-500.0,0.00046399,10]
[326776107,1715355040906,-500.0,0.00046399,10]
[326776108,1715355040916,-500.0,0.00046399,10]
[326776109,1715355040925,-500.0,0.00046399,10]
[326776110,1715355040934,-571.91759999,0.00046399,10]
[326776111,1715355040944,-500000.0,0.000464,2]
[326776112,1715355040953,-151.0,0.000464,7]
[326776113,1715355040962,-151.0,0.000464,7]
[326776114,1715355040972,-151.0,0.000464,7]
[326776115,1715355040981,-307.935114,0.000464,2]
[326776116,1715355040991,-307.935114,0.000464,2]
[326776117,1715355041000,-471.046822,0.000464,7]
[326776118,1715355041009,-309.902945,0.000464,7]
[326776119,1715355041018,-471.046822,0.000464,7]
[326776120,1715355041028,-309.902945,0.000464,7]
[326776121,1715355041037,-151.0,0.000464,7]
[326776122,1715355041046,-151.188848,0.000464,7]
[326776123,1715355041056,-151.0,0.000464,7]
[326776124,1715355041065,-151.0,0.000464,7]
[326776125,1715355041074,-151.0,0.000464,7]
[326776126,1715355041084,-151.0,0.000464,7]
[326776127,1715355041093,-227.208661,0.000464,7]
[326776128,1715355041103,-227.208661,0.000464,7]
[326776129,1715355041112,-151.0,0.000464,7]
[326776130,1715355041122,-151.0,0.000464,7]
[326776131,1715355041131,-151.0,0.000464,7]
[326776132,1715355041141,-151.0,0.000464,7]
[326776133,1715355041150,-151.0,0.000464,7]
[326776134,1715355041159,-151.0,0.000464,7]
[326776135,1715355041169,-151.0,0.000464,7]
[326776136,1715355041178,-151.0,0.000464,7]
[326776137,1715355041187,-615.259685,0.000464,7]
[326776138,1715355041197,-151.0,0.000464,7]
[326776139,1715355041206,-615.259685,0.000464,7]
[326776140,1715355041215,-4566.537007,0.000464,7]
[326776141,1715355041224,-4566.537007,0.000464,7]
[326776142,1715355041233,-245.589962,0.000464,7]
[326776143,1715355041242,-245.589962,0.000464,7]
[326776144,1715355041251,-170.0,0.00047,90]
[326776145,1715355041261,-639.72290815,0.000473,120]
[326776146,1715355041270,-151.0,0.00048,120]
[326776147,1715355041279,-154.7215013,0.0004834,10]
[326776148,1715355041288,-22176.480221,0.00049,120]
[326776149,1715355041299,-1864.402026,0.00049341,30]
[326776150,1715355041309,-1242.934685,0.00049341,30]
[326776151,1715355041318,-2889.665829,0.00049341,30]
[326776152,1715355041328,-167.651318,0.00049341,30]
[326776153,1715355041338,-201.618557,0.00049341,30]
[326776154,1715355041347,-181.484269,0.00049341,30]
[326776155,1715355041356,-160.849912,0.00049341,30]
[326776156,1715355041366,-160.84991,0.00049341,30]
[326776157,1715355041375,-225.04049,0.00049341,30]
[326776158,1715355041386,-375.15768469,0.0004988,30]
[326776160,1715355041398,-403.55519046,0.000499,76]
[326776162,1715355041408,-1864.402026,0.00049957,30]
[326776164,1715355041418,-1242.934685,0.00049957,30]
[326776166,1715355041428,-2889.665829,0.00049957,30]
[326776168,1715355041438,-225.04049,0.00049957,30]
[326776170,1715355041448,-5000.0,0.0005,43]
[326776172,1715355041458,-500.0,0.0005,30]
[326776174,1715355041467,-357.20786533,0.0005,10]
[326776176,1715355041476,-2564.35014799,0.0005,60]
[326776178,1715355041485,-151.0,0.0005,120]
[326776180,1715355041495,-500.0,0.0005,4]
[326776182,1715355041504,-506.0,0.0005,120]
[326776184,1715355041513,-500.0,0.0005,2]
[326776186,1715355041523,-169.25395516,0.00050008,60]
[326776188,1715355041538,-153.0,0.00050137,2]
[326776190,1715355041548,-1864.402026,0.00050574,30]
[326776192,1715355041557,-1242.934685,0.00050574,30]
[326776194,1715355041566,-2889.665829,0.00050574,30]
[326776196,1715355041575,-225.04049,0.00050574,30]
[326776198,1715355041584,-153.85487965,0.00050956,60]
[326776199,1715355041594,-151.0,0.00050986,120]
[326776200,1715355041603,-1864.402026,0.00051191,30]
[326776201,1715355041612,-1242.934685,0.00051191,30]
[326776202,1715355041621,-2889.665829,0.00051191,30]
[326776203,1715355041631,-225.04049,0.00051191,30]
[326776204,1715355041641,-153.0,0.00051507,2]